Cogmind - Beta 13 @@@ ROGUE MODE // 2024.04.01 @ 01:29:23 Player: Keyes Result: Destroyed by Y-45 Defender with Beam Rifle Performance ------------- Evolutions (2) 1000 Regions Visited (3) 600 Robots Destroyed (34) 170 Value Destroyed (968) 968 Prototype IDs (4) 80 Alien Tech Used (0) 0 Bonus (0) 0 TOTAL SCORE: 2818 Bonus ------- None Cogmind --------- Core Integrity 0/550 Matter 169/300 Energy 140/140 System Corruption 1% Temperature Cool (36) Movement Treading (160) Location -8/Materials Parts ------- > --- POWER (2) -------- Light Deuterium Engine > --- PROPULSION (2) --- Light Treads VSS Leg > --- UTILITY (5) ------ Advanced Targeting Computer Advanced Targeting Computer > --- WEAPON (2) ------- Mini Grenade Launcher > --- INVENTORY (5) ---- Improved Ion Engine VSS Leg Long-range Tractor Beam Improved Datajack Peak State ------------ > --- POWER ------------ Cooled Ion Engine > --- PROPULSION ------- Carbon-fiber Leg VSS Leg > --- UTILITY ---------- Medium Storage Unit Advanced Targeting Computer Advanced Targeting Computer Improved Power Shielding Hacking Suite > --- WEAPON ----------- Advanced Assault Cannon Advanced Assault Cannon > --- INVENTORY -------- Ion Engine Improved Ion Engine Light Deuterium Engine Armored Treads VSS Leg ECM Suite Long-range Tractor Beam Advanced Assault Cannon Improved Datajack [Rating: 32] Favorites ----------- Power Cooled Ion Engine Engine Cooled Ion Engine Propulsion Light Treads Treads Light Treads Leg VSS Leg Hover Unit Hover Unit Utility Advanced Targeting Computer Device ECM Suite Storage Medium Storage Unit Processor Advanced Targeting Computer Hackware Hacking Suite Protection Improved Power Shielding Weapon Improved Assault Rifle Ballistic Gun Improved Assault Rifle Ballistic Cannon Advanced Assault Cannon Launcher Mini Grenade Launcher Special Melee Weapon Improved Datajack Build | -11 -10 -9 -8 ------- Run | Yrd Mat Mat Mat Slots Evolved 4 | . . 2 2 Power 1 | . . 1 . Propulsion . | . . . . Utility 3 | . . 1 2 Weapon . | . . . . Parts Attached 52 | 5 12 12 23 Power 5 | 1 1 2 1 Engine 5 | 1 1 2 1 Core . | . . . . Reactor . | . . . . Propulsion 18 | 2 4 4 8 Treads 10 | 2 2 2 4 Leg 6 | . . 2 4 Wheel . | . . . . Hover 2 | . 2 . . Flight . | . . . . Utility 16 | . 5 4 7 Device 5 | . 3 1 1 Storage 3 | . 2 1 . Processor 3 | . . 1 2 Hackware 1 | . . . 1 Protection 4 | . . 1 3 Artifact . | . . . . Weapon 13 | 2 2 2 7 Energy Gun . | . . . . Energy Cannon . | . . . . Ballistic Gun 7 | 2 2 2 1 Ballistic Cannon 4 | . . . 4 Launcher 1 | . . . 1 Special Weapon . | . . . . Impact Weapon . | . . . . Slashing Weapon . | . . . . Piercing Weapon . | . . . . Special Melee Weapon 1 | . . . 1 Unidentified Prototypes . | . . . . Parts Lost 12 | . . . 12 Power 1 | . . . 1 Propulsion 4 | . . . 4 Utility 4 | . . . 4 Weapon 3 | . . . 3 Highest Loss Streak 3 | . . . 3 To Critical Strikes . | . . . . Average Slot Usage (%) 91 | . 99 89 85 Engine 12 | . 14 16 8 Treads 16 | . 27 5 13 Leg 5 | . . 16 3 Device 9 | . 13 11 4 Storage 11 | . 13 11 8 Processor 9 | . . 10 18 Hackware 1 | . . . 2 Protection 3 | . . . 9 Ballistic Gun 16 | . 27 18 5 Ballistic Cannon 3 | . . . 9 Naked Turns . | . . . . Heaviest Build 40 | 9 31 40 40 Greatest Support 40 | 3 40 40 40 Greatest Overweight (x) 2 | 2 2 1 2 Average Overweight (x) . | 1 . . . Largest Inventory Capacity 15 | 5 15 15 10 Average Capacity 11 | 5 13 12 9 Most Carried 15 | 5 14 15 10 Average Carried 10 | 3 10 12 9 Final Capacity 15 | 5 15 10 5 Final Carried 14 | 4 14 10 4 Class Distribution -------------------- 90% | Mutant 9% | Scavenger-Mutant Dominant Class ---------------- Mutant | -10/Materials Mutant | -9/Materials Mutant | -8/Materials Resources | -11 -10 -9 -8 ----------- Run | Yrd Mat Mat Mat Matter Collected 1283 | 213 362 164 544 Remotely . | . . . . Salvage Created 888 | . 362 150 376 Parts 77 | . 35 9 33 Haulers Intercepted . | . . . . Recyclers Shooed . | . . . . Parts Field Recycled . | . . . . Retrieved Matter . | . . . . Parts Self-Destructed . | . . . . Prevented . | . . . . Kills | -11 -10 -9 -8 ------- Run | Yrd Mat Mat Mat Combat Hostiles Destroyed 27 | . 13 3 11 Guns 17 | . 13 3 1 Cannons 8 | . . . 8 AOE 2 | . . . 2 Classes Destroyed 7 | . 3 2 2 Worker 1 | . . . 1 Builder 3 | . . 1 2 Watcher 3 | . 3 . . Swarmer 9 | . 9 . . Grunt 13 | . 4 2 7 Sentry 4 | . . 1 3 Hunter 1 | . . . 1 Best Kill Streak 6 | . 6 3 4 Combat Bots Only 6 | . 6 2 2 Max Kills in Single Turn 3 | . 2 1 3 Gunslinging 1 | . 1 . . Exploded 1 | . . . 1 Melee . | . . . . Uniques/NPCs Destroyed . | . . . . Combat | -11 -10 -9 -8 -------- Run | Yrd Mat Mat Mat Hostile Shots Fired 339 | . 75 22 242 Missed 105 | . 28 8 69 Damage Taken 3450 | . 434 176 2840 Core 635 | . 85 . 550 Absorbed by Shields . | . . . . Redirected to Shielding 106 | . . . 106 Core Remaining (%) 88 | 100 66 100 . Volleys Fired 92 | . 38 10 44 Largest 2 | . 2 2 2 Hottest 96 | . 46 46 96 Shots Fired 175 | . 76 20 79 Gun 118 | . 76 20 22 Cannon 51 | . . . 51 Launcher 6 | . . . 6 Special . | . . . . Kinetic 169 | . 76 20 73 Thermal . | . . . . Explosive 6 | . . . 6 Electromagnetic . | . . . . Robot Hit Streak 16 | . 7 6 16 Robot Miss Streak 5 | . 5 3 3 Penetration Max . | . . . . Secondary Targets 4 | . 4 . . Max Gunslinging Chain 1 | . 1 . . Shots Hit Robots 101 | . 37 11 53 Core Hits 53 | . 19 6 28 Critical Kills 1 | . . 1 . Critical Parts Destroyed . | . . . . Critical Strikes 4 | . . 1 3 Destroy 1 | . . 1 . Blast 3 | . . . 3 Melee Attacks 2 | . . . 2 Impact . | . . . . Slashing . | . . . . Piercing . | . . . . Sneak Attacks 2 | . . . 2 Combat Hostiles . | . . . . Follow-up Attacks . | . . . . Damage Inflicted 2235 | . 592 201 1442 Guns 1002 | . 589 201 212 Cannons 824 | . . . 824 Explosions 399 | . . . 399 Melee . | . . . . Ramming 10 | . 3 . 7 Kinetic 1826 | . 589 201 1036 Thermal 61 | . . . 61 Explosive 338 | . . . 338 Electromagnetic . | . . . . Impact . | . . . . Slashing . | . . . . Piercing . | . . . . Highest Corruption 1 | . . . 1 Average Corruption 1 | . . . 1 Corruption Purged . | . . . . Corruption Blocked . | . . . . Effects 1 | . . . 1 Data Loss (major) 1 | . . . 1 Overload Shots . | . . . . Overflow Damage 16 | . . . 16 Projectiles 5 | . . . 5 Explosions 11 | . . . 11 Melee . | . . . . Knockbacks 9 | . . . 9 Impact . | . . . . Kinetic 7 | . . . 7 Secondary 2 | . . . 2 Self-Inflicted Damage 134 | . . . 134 Shots 3 | . . . 3 Rammed 4 | . 1 . 3 Targets Rammed 5 | . 1 . 4 Kicked 1 | . . . 1 Crushed . | . . . . Highest Temperature 135 | . 22 . 135 Average Temperature 35 | . 8 . 50 Received Heat Transfer 1362 | . 96 78 1188 Siege Activations . | . . . . Robots Corrupted . | . . . . Combat Hostiles . | . . . . Parts Fried . | . . . . Impact Corruptions . | . . . . Robots Melted . | . . . . Combat Hostiles . | . . . . Parts Melted . | . . . . Heat Transferred 50 | . . . 50 Parts Sabotaged . | . . . . Parts Stolen . | . . . . Parts Stripped . | . . . . Power Chain Reactions . | . . . . Alert | -11 -10 -9 -8 ------- Run | Yrd Mat Mat Mat Peak Influence 229 | . 229 115 164 Initial 66 | . . 66 48 Average 66 | . 74 63 66 Maximum Alert Level 1 | . 1 . . Low Security (%) 99 | 100 99 100 100 Level 1 . | . . . . Level 2 . | . . . . Level 3 . | . . . . Level 4 . | . . . . Level 5 . | . . . . High Security . | . . . . Max Security . | . . . . Squads Dispatched 4 | . 2 1 1 Investigation . | . . . . Extermination . | . . . . Reinforcement 4 | . 2 1 1 Assault . | . . . . Garrison . | . . . . Intercept . | . . . . Searches Triggered . | . . . . Construction Impeded . | . . . . Haulers Reinforced . | . . . . Active Scanning Responses . | . . . . Cargo Convoy Interrupts . | . . . . Stealth | -11 -10 -9 -8 --------- Run | Yrd Mat Mat Mat Distress Signals 5 | . 1 1 3 Communications Jammed . | . . . . Distress Signals . | . . . . Times Spotted 63 | . 20 9 34 Peak Tracking Total 6 | . 4 4 6 Tactical Retreats 2 | . . . 2 Traps | -11 -10 -9 -8 ------- Run | Yrd Mat Mat Mat Traps Triggered 2 | . 1 . 1 Indirectly . | . . . . Trap Hack Attempts . | . . . . Triggered . | . . . . Disarmed 6 | . 6 . . Reprogrammed . | . . . . Reused . | . . . . Traps Extracted . | . . . . Installed . | . . . . Triggered . | . . . . Machines | -11 -10 -9 -8 ---------- Run | Yrd Mat Mat Mat Machines Disabled 3 | . . . 3 Max in Single Turn 2 | . . . 2 Garrison Access 1 | . . . 1 Machines Repaired . | . . . . Machines Dismantled . | . . . . Machines Sabotaged . | . . . . Overloaded Fab Kills . | . . . . Hacking | -11 -10 -9 -8 --------- Run | Yrd Mat Mat Mat Machines Accessed 11 | . 6 1 4 Terminals 9 | . 5 1 3 Fabricators . | . . . . Repair Stations . | . . . . Recycling Units 1 | . 1 . . Scanalyzers . | . . . . Garrison Access 1 | . . . 1 Total Hacks 37 | . 16 5 16 Successful 20 | . 11 2 7 Failed 16 | . 5 3 8 Catastrophic 3 | . . 1 2 Database Lockouts 1 | . . . 1 Manual 7 | . 4 2 1 Terminals 30 | . 13 5 12 Fabricators . | . . . . Repair Stations . | . . . . Recycling Units 3 | . 3 . . Scanalyzers . | . . . . Garrison Access 4 | . . . 4 Terminal Hacks 16 | . 8 2 6 Record 9 | . 4 . 5 Prototype ID Bank 2 | . 1 . 1 Unreport Threat 1 | . . 1 . Locate Traps 1 | . 1 . . Disarm Traps 1 | . 1 . . Zone Layout 2 | . 1 1 . Fabricator Hacks . | . . . . Repair Station Hacks . | . . . . Recycling Unit Hacks 3 | . 3 . . Process 1 | . 1 . . Report Inventory 2 | . 2 . . Scanalyzer . | . . . . Garrison Access Hacks 1 | . . . 1 Seal Access 1 | . . . 1 Unauthorized Hacks . | . . . . Terminals . | . . . . Fabricators . | . . . . Repair Stations . | . . . . Recycling Units . | . . . . Scanalyzers . | . . . . Garrison Access . | . . . . Data Cores Recovered . | . . . . Used . | . . . . Hacking Detections 10 | . 5 1 4 Full Trace Events 1 | . 1 . . Feedback Events . | . . . . Feedback Blocked . | . . . . Robot Schematics Acquired . | . . . . Robots Built . | . . . . Authchips . | . . . . Time . | . . . . Total Robot Build Rating . | . . . . Part Schematics Acquired . | . . . . Parts Built . | . . . . Authchips . | . . . . Time . | . . . . Total Part Build Rating . | . . . . Parts Repaired . | . . . . Time . | . . . . Parts Recycled . | . . . . Recycled Matter . | . . . . Retrieved Matter . | . . . . Retrieved Components . | . . . . Parts Scanalyzed . | . . . . Part Schematics Acquired . | . . . . Parts Damaged . | . . . . Bothacking | -11 -10 -9 -8 ------------ Run | Yrd Mat Mat Mat Used RIF Installer . | . . . . Robots Hacked 2 | . . . 2 Non-combat 2 | . . . 2 Combat . | . . . . Robot Hacks Applied 2 | . . . 2 parse_system 2 | . . . 2 Relay Couplers Released . | . . . . Fabnet Peak Effective % . | . . . . Robots Rewired . | . . . . Allies Hacked . | . . . . Hacks Repelled . | . . . . Allies | -11 -10 -9 -8 -------- Run | Yrd Mat Mat Mat Total Allies . | . . . . Largest Group . | . . . . Highest-Rated Group . | . . . . Highest-Rated Ally . | . . . . Total Orders . | . . . . Ally Attacks . | . . . . Total Damage . | . . . . Kills . | . . . . Allies Corrupted . | . . . . Allies Melted . | . . . . Intel | -11 -10 -9 -8 ------- Run | Yrd Mat Mat Mat Robot Analysis Total . | . . . . Derelict Logs Recovered . | . . . . Drone Launches . | . . . . Drone Recoveries . | . . . . Exploration | -11 -10 -9 -8 ------------- Run | Yrd Mat Mat Mat Turns Passed 2625 | 75 930 584 1036 Spaces Moved 1272 | 55 477 283 457 Core 59 | 55 4 . . Treads 927 | . 473 77 377 Legs 286 | . . 206 80 Wheels . | . . . . Hover . | . . . . Flight . | . . . . Fastest Speed 50 | 50 150 90 105 Average Speed 166 | 112 159 174 174 Slowest Speed 270 | 150 160 240 270 Overloaded Moves . | . . . . Propulsion Burnouts . | . . . . Robots Hopped . | . . . . Cave-ins Triggered . | . . . . Exploration Rate (%) 36 | 5 68 22 51 Regions Visited 3 Branch Regions . Pre-discovered Areas . | . . . . Known Exits Taken 1 | . . 1 . Unknown Exits Taken 2 | 1 1 . . Scrap Searched . | . . . . Spaces Dug 8 | . . . 8 Terrain Destroyed 76 | . . . 76 Melee . | . . . . Projectile 13 | . . . 13 AOE 63 | . . . 63 Terrain Rammed . | . . . . Walls Destroyed . | . . . . Machines Disabled . | . . . . Actions | -11 -10 -9 -8 --------- Run | Yrd Mat Mat Mat Total 1621 | 68 578 361 614 Wait 105 | . 25 25 55 Move 1269 | 54 476 282 457 Hop . | . . . . Pick Up 54 | 9 18 11 16 Fast Attach 9 | . 2 4 3 Attach 26 | 5 2 7 12 Detach 5 | . . 4 1 Swap 17 | . 8 1 8 Drop 37 | . 8 17 12 Fire 92 | . 38 10 44 Melee 2 | . . . 2 Ram . | . . . . Kick 1 | . . . 1 Crush 4 | . 1 . 3 Escape Stasis . | . . . . Rewire . | . . . . Trap . | . . . . Miscellaneous . | . . . . Route ------- -11/Scrapyard -10/Materials (discovered 2 exits: *Mat x2) -9/Materials -8/Materials History --------- Turn | Location | Event 17 | -11/Scrapyard | Discovered new exit (range 14) 76 | -11/Scrapyard | Entered Materials 303 | -10/Materials | Build established: Mutant 425 | -10/Materials | Discovered new exit (range 4) 725 | -10/Materials | Discovered new exit (range 6) 1006 | -10/Materials | Entered another Materials area 1006 | -9/Materials | Evolved 2 slots: Power x1, Utility x1 1566 | -9/Materials | Discovered new exit (range 16) 1588 | -9/Materials | Identified exit to Materials 1590 | -9/Materials | Entered another Materials area 1590 | -8/Materials | Evolved 2 slots: Utility x2 1705 | -8/Materials | Central database locked down 2511 | -8/Materials | Core integrity fell below 50% 2532 | -8/Materials | Core integrity fell below 20% 2539 | -8/Materials | Lost 3 parts (1n2u) 2626 | -8/Materials | Destroyed by Y-45 Defender with Beam Rifle Last Messages --------------- 02579_ Adv. Assault Cannon destroyed. 02582_ K-01 Serf collects debris. 02583_ Acquired 2 matter. 02584_ U-05 Engineer builds a Wall. 02585_ K-01 Serf collects debris. 02586_ Acquired 3 matter. 02590_ K-01 Serf collects debris. 02595_ Dropped Med. Storage Unit. 02602_ Acquired VSS Leg. 02605_ K-01 Serf collects debris. 02617_ Critical hit (Burn: +37). 02618_ Acquired 55 matter. 02620_ Fusion Modulator explodes. 02620_ Repair Station disabled. 02620_ Backup Laser I tumbles out of repair station. 02620_ Hvy. Armor Plating destroyed. 02620_ Destroyed Hvy. Armor Plating. 02620_ Backup Power I tumbles out of repair station. 02626_ U-05 Engineer lays Concrete. 02626_ Critical hit (Burn: +37). Map ----- +----------------------------------------------------+ | | | | | | | ?????????????????????????????????????????????????? | | ?????????????????????????????????????????????????? | | ?????????????????????????????????????????????????? | | ?????????????????????????????????????????????????? | | ?????????????????????????????????????????????????? | | ?????????????????????????????????????????????????? | | ?????????????????????????????????????????????????? | | ?????????????????????????????????????????????????? | | ?????????????????????????????????????????????????? | | ?????????????????????H? ?????????????????????? | | ??????????????????????? ?????????????????????? | | ???????????????????????# #?????????????????????? | | ???????????????????????# #?????????????????????? | | ????????????????? ?????# #?????????????????????? | | ????????????????? ?????# #?????????????????????? | | ????????????????? ?????# #?????????????????????? | | ????????????????# ?????# #?????????????????????? | | ????????????????# ????## ##????????????????????? | | ???????????????## ##### #????????????????????? | | ???????????????# #????????????????????? | | ???????????????+ w T #????????????????????? | | ???????????????# #????????????????????? | | ???????????????# ###; @ ##???????????????????? | | ???????????????# # ;;## +??????????????? | | ???????????????# # ; #??????????????? | | ????????#+###### ;g l ;###+##??????????????? | | ????????# ;g ; ????????????? | | ????????+ u ; """"" #???????????? | | ????????# Y;Y [ ; """"???????????????? | | ????????######### #;] * ; """"???????????????? | | ????????????????# ## ; """????????????????? | | ????????????????#]## ; """????????????????? | | ????????????????#!## # """????????????????? | | ??????????????###=########### ""?????????######### | | ??????????????# # # ?????????# | | ????????""" ### # #?##?????????# | | ??????????? + + "T" #????????????# | | ????????????### # """ #????????????# ! | | ??????????????# ## ######????????????# | | ??????????????## ######????????????????#! ! | | ???????????????# # #????????????????# | | ???????????????# # ################## | | ??????????????## # + | | ???????? # # ############## #####+### | | ???????######### = # # #???????????## #??# + | | ???????????????# %[# ## #???????????# ### # | | ????????????#####+####### #???????????# # | +----------------------------------------------------+ Best States ------------- Heat Dissipation 31 Energy Generation 15 Energy Capacity 430 Matter Stores 263 Matter Capacity 300 Sight Range 16 Robot Scan Range 14 Terrain Scan Density 10 ECM Strength 1 Armor Coverage 600 Power Shielding 66 Evasion (%) 50 Targeting Accuracy 16 Recoil Reduction 2 Offensive Hacking 10 Item Schematics ----------------- None Robot Schematics ------------------ None Fabricated ------------ Nothing Alien Tech Used ----------------- None Achievements -------------- Everything Is Under Control Challenges ------------ None Game ------ Seed ParticleFocalTorch Manual? 0 Play Time 00:54:57 Cumulative 5.1 hours Start 2024.04.01 @ 00:23:30 End 2024.04.01 @ 01:29:23 Sessions 3 Manual Loads 0 Difficulty Rogue Special Mode None Game No. 9 Rogue 9 Adventurer 0 Explorer 0 Win Type - Total 0 Types 0/0/0/0/0/0/0/0/0 Lore% 2 Gallery% 11 Achievement% 9 Wizard Run 0 Options --------- Layout 0 ASCII 0 Keyboard 0 Movement Mouse Keybinds 0 Fullscreen 1 Font 24/Tamsyn Map View 76x50 Zoom Use 0% Tactical HUD 1 Map Filters NONE Filters NONE Steam 1 RUN: bfc38ad6-2b9c-4b9e-ae6b-295a1bc2efdf